[Event "Titled Tuesday Blitz November 14 Early 2023"]
[White "Kamsky, Gata"]
[Black "Daneshvar, Bardiya"]
[WhiteFideId "2000024"]
[BlackFideId "12576468"]
[WhiteElo "2908"]
[BlackElo "2989"]
[Result "0-1"]
[Round "7"]
[TimeControl "180+1"]
[Date "2023.11.14"]
[WhiteClock "0:00:11"]
[BlackClock "0:00:06"]
[Board "4"]

1. d4 {[%clk 0:03:00]}  Nf6 {[%clk 0:02:57]} 2. Bf4 {[%clk 0:02:59]}  c5 {[%clk 0:02:57]} 3. e3 {[%clk 0:02:58]}  Qb6 {[%clk 0:02:53]} 4. b3 {[%clk 0:02:53]}  cxd4 {[%clk 0:02:40]} 5. exd4 {[%clk 0:02:43]}  d5 {[%clk 0:02:39]} 6. c3 {[%clk 0:02:35]}  Nc6 {[%clk 0:02:39]} 7. Nf3 {[%clk 0:02:35]}  Bg4 {[%clk 0:02:35]} 8. h3 {[%clk 0:02:33]}  Bh5 {[%clk 0:02:32]} 9. Bd3 {[%clk 0:02:31]}  e6 {[%clk 0:02:31]} 10. O-O {[%clk 0:02:31]}  Be7 {[%clk 0:02:31]} 11. Nbd2 {[%clk 0:02:29]}  O-O {[%clk 0:02:31]} 12. a4 {[%clk 0:02:28]}  Rac8 {[%clk 0:02:29]} 13. b4 {[%clk 0:02:25]}  a5 {[%clk 0:02:24]} 14. b5 {[%clk 0:02:24]}  Nb8 {[%clk 0:02:23]} 15. Rc1 {[%clk 0:02:22]}  Nbd7 {[%clk 0:02:03]} 16. c4 {[%clk 0:02:16]}  dxc4 {[%clk 0:01:53]} 17. Nxc4 {[%clk 0:02:13]}  Qd8 {[%clk 0:01:53]} 18. g4 {[%clk 0:01:42]}  Bg6 {[%clk 0:01:47]} 19. Bxg6 {[%clk 0:01:42]}  hxg6 {[%clk 0:01:48]} 20. Nfe5 {[%clk 0:01:40]}  Nd5 {[%clk 0:01:43]} 21. Bg3 {[%clk 0:01:37]}  N7b6 {[%clk 0:01:26]} 22. Nxb6 {[%clk 0:01:29]}  Rxc1 {[%clk 0:01:12]} 23. Qxc1 {[%clk 0:01:28]}  Nxb6 {[%clk 0:01:12]} 24. Rd1 {[%clk 0:01:11]}  Qd5 {[%clk 0:00:50]} 25. Qc7 {[%clk 0:01:08]}  Bd8 {[%clk 0:00:48]} 26. Qc2 {[%clk 0:01:07]}  Bf6 {[%clk 0:00:42]} 27. Qc7 {[%clk 0:00:56]}  Nxa4 {[%clk 0:00:38]} 28. Qxa5 {[%clk 0:00:47]}  Nb2 {[%clk 0:00:33]} 29. Rd2 {[%clk 0:00:44]}  Nc4 {[%clk 0:00:33]} 30. Nxc4 {[%clk 0:00:44]}  Qxc4 {[%clk 0:00:34]} 31. Be5 {[%clk 0:00:37]}  Bxe5 {[%clk 0:00:14]} 32. dxe5 {[%clk 0:00:37]}  b6 {[%clk 0:00:15]} 33. Qa1 {[%clk 0:00:32]}  Qxb5 {[%clk 0:00:15]} 34. Qd4 {[%clk 0:00:29]}  Rc8 {[%clk 0:00:14]} 35. Kg2 {[%clk 0:00:24]}  Qc6+ {[%clk 0:00:12]} 36. f3 {[%clk 0:00:24]}  b5 {[%clk 0:00:11]} 37. h4 {[%clk 0:00:24]}  Qc1 {[%clk 0:00:09]} 38. Kg3 {[%clk 0:00:20]}  Qe1+ {[%clk 0:00:08]} 39. Kg2 {[%clk 0:00:20]}  Qxh4 {[%clk 0:00:08]} 40. Qb2 {[%clk 0:00:17]}  Qe1 {[%clk 0:00:07]} 41. Re2 {[%clk 0:00:17]}  Qd1 {[%clk 0:00:07]} 42. Rd2 {[%clk 0:00:17]}  Qe1 {[%clk 0:00:06]} 43. Re2 {[%clk 0:00:17]}  Qa5 {[%clk 0:00:06]} 44. Rd2 {[%clk 0:00:17]}  b4 {[%clk 0:00:06]} 45. Kg3 {[%clk 0:00:17]}  Qa3 {[%clk 0:00:06]} 46. Qd4 {[%clk 0:00:16]}  Qc3 {[%clk 0:00:06]} 47. Qd7 {[%clk 0:00:15]}  Qxe5+ {[%clk 0:00:06]} 48. Kg2 {[%clk 0:00:15]}  Qc7 {[%clk 0:00:06]} 49. Qb5 {[%clk 0:00:15]}  Rb8 {[%clk 0:00:06]} 50. Qe2 {[%clk 0:00:11]}  b3 {[%clk 0:00:06]} 0-1


[Site "https://www.chess.com"]

[Event "Titled Tuesday Blitz November 14 Early 2023"]
[White "Sychev, Klementy"]
[Black "Pranav, V"]
[WhiteFideId "4114060"]
[BlackFideId "25060783"]
[WhiteElo "2920"]
[BlackElo "3095"]
[Result "1-0"]
[Round "7"]
[TimeControl "180+1"]
[Date "2023.11.14"]
[WhiteClock "0:00:02"]
[BlackClock "0:00:00"]
[Board "5"]

1. e4 {[%clk 0:03:00]}  c6 {[%clk 0:02:58]} 2. c4 {[%clk 0:03:00]}  d6 {[%clk 0:02:53]} 3. d4 {[%clk 0:02:58]}  Nd7 {[%clk 0:02:53]} 4. Nc3 {[%clk 0:02:59]}  Ngf6 {[%clk 0:02:53]} 5. f4 {[%clk 0:02:56]}  e5 {[%clk 0:02:51]} 6. Nf3 {[%clk 0:02:56]}  exd4 {[%clk 0:02:49]} 7. Qxd4 {[%clk 0:02:48]}  Qb6 {[%clk 0:02:42]} 8. Be2 {[%clk 0:02:29]}  Be7 {[%clk 0:02:36]} 9. O-O {[%clk 0:02:13]}  O-O {[%clk 0:02:35]} 10. Be3 {[%clk 0:02:06]}  Ng4 {[%clk 0:02:27]} 11. Qxb6 {[%clk 0:01:55]}  axb6 {[%clk 0:02:27]} 12. Bd2 {[%clk 0:01:51]}  Ngf6 {[%clk 0:02:20]} 13. Bd3 {[%clk 0:01:22]}  Re8 {[%clk 0:02:15]} 14. h3 {[%clk 0:01:17]}  Bf8 {[%clk 0:02:14]} 15. Rae1 {[%clk 0:01:13]}  Nc5 {[%clk 0:02:10]} 16. Bc2 {[%clk 0:01:14]}  Be6 {[%clk 0:01:51]} 17. b3 {[%clk 0:01:09]}  g6 {[%clk 0:01:47]} 18. f5 {[%clk 0:00:50]}  gxf5 {[%clk 0:01:29]} 19. exf5 {[%clk 0:00:51]}  Bd7 {[%clk 0:01:29]} 20. g4 {[%clk 0:00:51]}  b5 {[%clk 0:00:57]} 21. cxb5 {[%clk 0:00:42]}  cxb5 {[%clk 0:00:58]} 22. b4 {[%clk 0:00:32]}  Na4 {[%clk 0:00:56]} 23. Bxa4 {[%clk 0:00:25]}  bxa4 {[%clk 0:00:54]} 24. Bg5 {[%clk 0:00:23]}  Bg7 {[%clk 0:00:51]} 25. Bxf6 {[%clk 0:00:23]}  Bxf6 {[%clk 0:00:52]} 26. Nd5 {[%clk 0:00:23]}  Bd8 {[%clk 0:00:51]} 27. Rxe8+ {[%clk 0:00:14]}  Bxe8 {[%clk 0:00:52]} 28. Nd4 {[%clk 0:00:15]}  Bc6 {[%clk 0:00:42]} 29. Nxc6 {[%clk 0:00:12]}  bxc6 {[%clk 0:00:43]} 30. Nc3 {[%clk 0:00:10]}  d5 {[%clk 0:00:22]} 31. a3 {[%clk 0:00:10]}  Bf6 {[%clk 0:00:21]} 32. Rc1 {[%clk 0:00:06]}  Kf8 {[%clk 0:00:08]} 33. Nd1 {[%clk 0:00:06]}  Ra6 {[%clk 0:00:05]} 34. Kf2 {[%clk 0:00:06]}  Ke7 {[%clk 0:00:06]} 35. Ke3 {[%clk 0:00:05]}  Kd6 {[%clk 0:00:06]} 36. Kd3 {[%clk 0:00:05]}  Ra8 {[%clk 0:00:07]} 37. Rc2 {[%clk 0:00:04]}  Re8 {[%clk 0:00:05]} 38. Nc3 {[%clk 0:00:04]}  d4 {[%clk 0:00:02]} 39. Ne4+ {[%clk 0:00:04]}  Ke5 {[%clk 0:00:02]} 40. Re2 {[%clk 0:00:03]}  Bd8 {[%clk 0:00:00]} 41. Nc5+ {[%clk 0:00:02]} 1-0


[Site "https://www.chess.com"]

[Event "Titled Tuesday Blitz November 14 Early 2023"]
[White "Niemann, Hans Moke"]
[Black "Salinas Herrera, Pablo"]
[WhiteFideId "2093596"]
[BlackFideId "3407128"]
[WhiteElo "3038"]
[BlackElo "2905"]
[Result "1-0"]
[Round "7"]
[TimeControl "180+1"]
[Date "2023.11.14"]
[WhiteClock "0:00:55"]
[BlackClock "0:00:50"]
[Board "8"]

1. e4 {[%clk 0:03:00]}  e5 {[%clk 0:02:55]} 2. Nf3 {[%clk 0:03:00]}  Nc6 {[%clk 0:02:55]} 3. Bc4 {[%clk 0:03:01]}  Bc5 {[%clk 0:02:55]} 4. d3 {[%clk 0:03:01]}  Nf6 {[%clk 0:02:55]} 5. O-O {[%clk 0:03:01]}  O-O {[%clk 0:02:55]} 6. c3 {[%clk 0:03:02]}  d6 {[%clk 0:02:55]} 7. Re1 {[%clk 0:03:01]}  Bb6 {[%clk 0:02:55]} 8. h3 {[%clk 0:02:59]}  Ne7 {[%clk 0:02:55]} 9. a4 {[%clk 0:02:58]}  c6 {[%clk 0:02:53]} 10. Bb3 {[%clk 0:02:56]}  Ng6 {[%clk 0:02:53]} 11. d4 {[%clk 0:02:53]}  Re8 {[%clk 0:02:52]} 12. Nbd2 {[%clk 0:02:38]}  Be6 {[%clk 0:02:49]} 13. Bc2 {[%clk 0:02:33]}  h6 {[%clk 0:02:45]} 14. Nf1 {[%clk 0:02:31]}  exd4 {[%clk 0:02:44]} 15. cxd4 {[%clk 0:02:30]}  d5 {[%clk 0:02:45]} 16. e5 {[%clk 0:02:30]}  Ne4 {[%clk 0:02:45]} 17. Be3 {[%clk 0:02:20]}  f5 {[%clk 0:02:41]} 18. exf6 {[%clk 0:02:18]}  Qxf6 {[%clk 0:02:41]} 19. a5 {[%clk 0:02:14]}  Bc7 {[%clk 0:02:40]} 20. a6 {[%clk 0:02:15]}  b5 {[%clk 0:02:40]} 21. Rc1 {[%clk 0:02:09]}  Rac8 {[%clk 0:02:37]} 22. N1d2 {[%clk 0:02:07]}  Nxd2 {[%clk 0:02:32]} 23. Bxd2 {[%clk 0:02:05]}  Bd7 {[%clk 0:02:28]} 24. Be3 {[%clk 0:01:46]}  Nf4 {[%clk 0:02:27]} 25. Bxf4 {[%clk 0:01:45]}  Qxf4 {[%clk 0:02:22]} 26. Qd3 {[%clk 0:01:44]}  Re4 {[%clk 0:02:19]} 27. g3 {[%clk 0:01:42]}  Qf6 {[%clk 0:01:59]} 28. Rxe4 {[%clk 0:01:41]}  dxe4 {[%clk 0:02:00]} 29. Qxe4 {[%clk 0:01:41]}  Re8 {[%clk 0:01:50]} 30. Qh7+ {[%clk 0:01:40]}  Kf8 {[%clk 0:01:50]} 31. Nh4 {[%clk 0:01:32]}  Re2 {[%clk 0:01:37]} 32. Ng6+ {[%clk 0:01:28]}  Kf7 {[%clk 0:01:36]} 33. Bb3+ {[%clk 0:01:25]}  Be6 {[%clk 0:01:36]} 34. Bxe6+ {[%clk 0:01:25]}  Qxe6 {[%clk 0:01:23]} 35. Rc3 {[%clk 0:01:24]}  Qe4 {[%clk 0:01:16]} 36. Nh8+ {[%clk 0:01:22]}  Kf8 {[%clk 0:01:07]} 37. Qxe4 {[%clk 0:01:22]}  Rxe4 {[%clk 0:01:08]} 38. Rxc6 {[%clk 0:01:23]}  Bb6 {[%clk 0:01:07]} 39. Ng6+ {[%clk 0:01:22]}  Kf7 {[%clk 0:01:08]} 40. Ne5+ {[%clk 0:01:22]}  Kg8 {[%clk 0:01:06]} 41. Rxb6 {[%clk 0:00:56]}  axb6 {[%clk 0:01:05]} 42. a7 {[%clk 0:00:55]}  Re1+ {[%clk 0:01:05]} 43. Kg2 {[%clk 0:00:56]}  Ra1 {[%clk 0:01:05]} 44. Nc6 {[%clk 0:00:56]}  Kf7 {[%clk 0:01:00]} 45. b4 {[%clk 0:00:56]}  Ra6 {[%clk 0:01:00]} 46. d5 {[%clk 0:00:56]}  Ke8 {[%clk 0:00:50]} 47. d6 {[%clk 0:00:55]} 1-0


[Site "https://www.chess.com"]

[Event "Titled Tuesday Blitz November 14 Early 2023"]
[White "Madaminov, Mukhiddin"]
[Black "Terry, Renato"]
[WhiteFideId "14210703"]
[BlackFideId "3803457"]
[WhiteElo "2885"]
[BlackElo "3013"]
[Result "0-1"]
[Round "7"]
[TimeControl "180+1"]
[Date "2023.11.14"]
[WhiteClock "0:00:02"]
[BlackClock "0:00:14"]
[Board "10"]

1. e4 {[%clk 0:03:00]}  e6 {[%clk 0:03:00]} 2. d4 {[%clk 0:03:00]}  d5 {[%clk 0:03:00]} 3. Nc3 {[%clk 0:03:00]}  Nf6 {[%clk 0:03:01]} 4. e5 {[%clk 0:02:59]}  Nfd7 {[%clk 0:03:01]} 5. f4 {[%clk 0:03:00]}  c5 {[%clk 0:03:02]} 6. Nf3 {[%clk 0:03:00]}  Nc6 {[%clk 0:03:03]} 7. Be3 {[%clk 0:03:01]}  Be7 {[%clk 0:03:04]} 8. a3 {[%clk 0:02:59]}  b6 {[%clk 0:03:03]} 9. Bd3 {[%clk 0:02:57]}  f6 {[%clk 0:03:02]} 10. exf6 {[%clk 0:02:47]}  Bxf6 {[%clk 0:03:03]} 11. Ne5 {[%clk 0:02:23]}  Bxe5 {[%clk 0:02:58]} 12. dxe5 {[%clk 0:02:07]}  Qh4+ {[%clk 0:02:45]} 13. g3 {[%clk 0:02:07]}  Qh3 {[%clk 0:02:45]} 14. Bf1 {[%clk 0:01:57]}  Qh6 {[%clk 0:02:45]} 15. Bg2 {[%clk 0:01:49]}  Ndxe5 {[%clk 0:02:39]} 16. Qe2 {[%clk 0:01:39]}  Nc4 {[%clk 0:02:17]} 17. O-O-O {[%clk 0:01:01]}  Nxe3 {[%clk 0:02:12]} 18. Qxe3 {[%clk 0:01:01]}  O-O {[%clk 0:02:13]} 19. Rhe1 {[%clk 0:00:37]}  Kh8 {[%clk 0:02:01]} 20. h4 {[%clk 0:00:34]}  Bd7 {[%clk 0:01:46]} 21. Nb5 {[%clk 0:00:28]}  Rae8 {[%clk 0:01:38]} 22. Bh3 {[%clk 0:00:18]}  Re7 {[%clk 0:01:35]} 23. Qd2 {[%clk 0:00:14]}  d4 {[%clk 0:01:22]} 24. Nd6 {[%clk 0:00:14]}  e5 {[%clk 0:01:02]} 25. Bxd7 {[%clk 0:00:12]}  Rxd7 {[%clk 0:00:58]} 26. fxe5 {[%clk 0:00:11]}  Qe6 {[%clk 0:00:58]} 27. Rf1 {[%clk 0:00:05]}  Rfd8 {[%clk 0:00:56]} 28. Rde1 {[%clk 0:00:04]}  Kg8 {[%clk 0:00:46]} 29. Kb1 {[%clk 0:00:04]}  Nxe5 {[%clk 0:00:45]} 30. Qf4 {[%clk 0:00:04]}  Qxd6 {[%clk 0:00:38]} 31. Rxe5 {[%clk 0:00:04]}  Rf8 {[%clk 0:00:37]} 32. Qxf8+ {[%clk 0:00:03]}  Qxf8 {[%clk 0:00:38]} 33. Rxf8+ {[%clk 0:00:03]}  Kxf8 {[%clk 0:00:39]} 34. b4 {[%clk 0:00:04]}  c4 {[%clk 0:00:37]} 35. Kc1 {[%clk 0:00:04]}  Kf7 {[%clk 0:00:37]} 36. Kd2 {[%clk 0:00:04]}  Kf6 {[%clk 0:00:38]} 37. Re4 {[%clk 0:00:03]}  b5 {[%clk 0:00:33]} 38. g4 {[%clk 0:00:03]}  g6 {[%clk 0:00:31]} 39. Re1 {[%clk 0:00:02]}  a6 {[%clk 0:00:28]} 40. a4 {[%clk 0:00:03]}  bxa4 {[%clk 0:00:24]} 41. Ra1 {[%clk 0:00:02]}  Ke5 {[%clk 0:00:24]} 42. Rxa4 {[%clk 0:00:03]}  Rd6 {[%clk 0:00:25]} 43. Ra5+ {[%clk 0:00:02]}  Ke4 {[%clk 0:00:22]} 44. c3 {[%clk 0:00:03]}  Rf6 {[%clk 0:00:20]} 45. cxd4 {[%clk 0:00:03]}  Kxd4 {[%clk 0:00:21]} 46. g5 {[%clk 0:00:02]}  Rb6 {[%clk 0:00:18]} 47. Kc2 {[%clk 0:00:02]}  Re6 {[%clk 0:00:18]} 48. Kd2 {[%clk 0:00:02]}  c3+ {[%clk 0:00:18]} 49. Kd1 {[%clk 0:00:03]}  Kc4 {[%clk 0:00:17]} 50. Kc2 {[%clk 0:00:02]}  Kxb4 {[%clk 0:00:18]} 51. Ra1 {[%clk 0:00:01]}  Re2+ {[%clk 0:00:17]} 52. Kd3 {[%clk 0:00:02]}  Rd2+ {[%clk 0:00:17]} 53. Ke3 {[%clk 0:00:03]}  Rh2 {[%clk 0:00:18]} 54. Rxa6 {[%clk 0:00:03]}  Rxh4 {[%clk 0:00:17]} 55. Kd3 {[%clk 0:00:04]}  Rh3+ {[%clk 0:00:17]} 56. Kc2 {[%clk 0:00:04]}  Kc4 {[%clk 0:00:18]} 57. Ra4+ {[%clk 0:00:02]}  Kd5 {[%clk 0:00:18]} 58. Ra5+ {[%clk 0:00:02]}  Ke4 {[%clk 0:00:18]} 59. Rb5 {[%clk 0:00:02]}  Kf4 {[%clk 0:00:18]} 60. Ra5 {[%clk 0:00:02]}  Rh5 {[%clk 0:00:17]} 61. Kxc3 {[%clk 0:00:03]}  Rxg5 {[%clk 0:00:17]} 62. Ra4+ {[%clk 0:00:03]}  Kg3 {[%clk 0:00:16]} 63. Kd2 {[%clk 0:00:04]}  Re5 {[%clk 0:00:15]} 64. Ra6 {[%clk 0:00:03]}  Kg4 {[%clk 0:00:14]} 65. Kd3 {[%clk 0:00:03]}  Kg5 {[%clk 0:00:14]} 66. Kd4 {[%clk 0:00:04]}  Re8 {[%clk 0:00:14]} 67. Ra1 {[%clk 0:00:03]}  h5 {[%clk 0:00:14]} 68. Rg1+ {[%clk 0:00:04]}  Kh6 {[%clk 0:00:15]} 69. Ra1 {[%clk 0:00:02]}  h4 {[%clk 0:00:15]} 70. Rf1 {[%clk 0:00:01]}  Kh5 {[%clk 0:00:15]} 71. Rf7 {[%clk 0:00:01]}  h3 {[%clk 0:00:15]} 72. Rh7+ {[%clk 0:00:01]}  Kg4 {[%clk 0:00:15]} 73. Rh6 {[%clk 0:00:02]}  g5 {[%clk 0:00:15]} 74. Rh7 {[%clk 0:00:02]}  Kg3 {[%clk 0:00:15]} 75. Rh8 {[%clk 0:00:02]}  Rxh8 {[%clk 0:00:14]} 0-1


[Site "https://www.chess.com"]

[Event "Titled Tuesday Blitz November 14 Early 2023"]
[White "Bortnyk, Olexandr"]
[Black "Rychkov, Oleg"]
[WhiteFideId "14120828"]
[BlackFideId "4122852"]
[WhiteElo "3009"]
[BlackElo "2854"]
[Result "1-0"]
[Round "7"]
[TimeControl "180+1"]
[Date "2023.11.14"]
[WhiteClock "0:01:16"]
[BlackClock "0:00:11"]
[Board "11"]

1. e4 {[%clk 0:02:54]}  e5 {[%clk 0:02:59]} 2. Nf3 {[%clk 0:02:53]}  Nc6 {[%clk 0:02:59]} 3. Bb5 {[%clk 0:02:52]}  a6 {[%clk 0:02:59]} 4. Ba4 {[%clk 0:02:52]}  d6 {[%clk 0:02:59]} 5. Nc3 {[%clk 0:02:47]}  b5 {[%clk 0:02:53]} 6. Bb3 {[%clk 0:02:47]}  Na5 {[%clk 0:02:53]} 7. d4 {[%clk 0:02:43]}  exd4 {[%clk 0:02:51]} 8. Qxd4 {[%clk 0:02:33]}  Nf6 {[%clk 0:02:07]} 9. e5 {[%clk 0:02:30]}  c5 {[%clk 0:01:59]} 10. Qe3 {[%clk 0:02:18]}  Ng4 {[%clk 0:01:49]} 11. Qe4 {[%clk 0:02:11]}  Nxb3 {[%clk 0:01:19]} 12. axb3 {[%clk 0:02:12]}  Be6 {[%clk 0:01:14]} 13. Nxb5 {[%clk 0:01:50]}  d5 {[%clk 0:01:07]} 14. Qa4 {[%clk 0:01:46]}  Bd7 {[%clk 0:01:06]} 15. e6 {[%clk 0:01:46]}  Bxb5 {[%clk 0:00:49]} 16. exf7+ {[%clk 0:01:28]}  Kxf7 {[%clk 0:00:49]} 17. Qxg4 {[%clk 0:01:29]}  Qe8+ {[%clk 0:00:48]} 18. Be3 {[%clk 0:01:27]}  d4 {[%clk 0:00:45]} 19. Qf5+ {[%clk 0:01:23]}  Kg8 {[%clk 0:00:24]} 20. Qd5+ {[%clk 0:01:21]}  Qf7 {[%clk 0:00:23]} 21. Qxa8 {[%clk 0:01:20]}  dxe3 {[%clk 0:00:23]} 22. fxe3 {[%clk 0:01:20]}  h6 {[%clk 0:00:18]} 23. O-O-O {[%clk 0:01:19]}  Qe6 {[%clk 0:00:11]} 24. Rd8 {[%clk 0:01:16]} 1-0


[Site "https://www.chess.com"]

[Event "Titled Tuesday Blitz November 14 Early 2023"]
[White "Rakhmanov, Aleksandr"]
[Black "Oparin, Grigoriy"]
[WhiteFideId "4173708"]
[BlackFideId "24125890"]
[WhiteElo "2851"]
[BlackElo "2999"]
[Result "0-1"]
[Round "7"]
[TimeControl "180+1"]
[Date "2023.11.14"]
[WhiteClock "0:00:00"]
[BlackClock "0:00:56"]
[Board "13"]

1. d4 {[%clk 0:02:30]}  Nf6 {[%clk 0:02:59]} 2. c4 {[%clk 0:02:28]}  e6 {[%clk 0:02:59]} 3. Nc3 {[%clk 0:02:28]}  Bb4 {[%clk 0:03:00]} 4. e3 {[%clk 0:02:29]}  b6 {[%clk 0:03:00]} 5. Bd3 {[%clk 0:02:28]}  Bb7 {[%clk 0:03:00]} 6. Ne2 {[%clk 0:02:29]}  Bxg2 {[%clk 0:02:49]} 7. Rg1 {[%clk 0:02:29]}  Bf3 {[%clk 0:02:49]} 8. Qc2 {[%clk 0:02:28]}  Nc6 {[%clk 0:02:39]} 9. a3 {[%clk 0:02:27]}  Bxe2 {[%clk 0:02:33]} 10. Qxe2 {[%clk 0:02:23]}  Bxc3+ {[%clk 0:02:33]} 11. bxc3 {[%clk 0:02:24]}  Rg8 {[%clk 0:02:18]} 12. e4 {[%clk 0:02:14]}  e5 {[%clk 0:02:18]} 13. Bg5 {[%clk 0:02:11]}  Qe7 {[%clk 0:02:00]} 14. f4 {[%clk 0:02:11]}  d6 {[%clk 0:01:57]} 15. c5 {[%clk 0:02:11]}  O-O-O {[%clk 0:01:49]} 16. d5 {[%clk 0:01:24]}  Na5 {[%clk 0:01:39]} 17. c6 {[%clk 0:01:22]}  exf4 {[%clk 0:01:35]} 18. Rb1 {[%clk 0:01:19]}  Rde8 {[%clk 0:01:29]} 19. Rb5 {[%clk 0:01:14]}  Qe5 {[%clk 0:01:27]} 20. Bxf6 {[%clk 0:00:26]}  gxf6 {[%clk 0:01:27]} 21. Rxg8 {[%clk 0:00:24]}  Rxg8 {[%clk 0:01:28]} 22. Kd2 {[%clk 0:00:21]}  f3 {[%clk 0:01:22]} 23. Qxf3 {[%clk 0:00:19]}  Qxh2+ {[%clk 0:01:22]} 24. Be2 {[%clk 0:00:18]}  Nc4+ {[%clk 0:01:21]} 25. Kc2 {[%clk 0:00:08]}  Nxa3+ {[%clk 0:01:20]} 26. Kb3 {[%clk 0:00:09]}  Nxb5 {[%clk 0:01:20]} 27. Bxb5 {[%clk 0:00:07]}  Qe5 {[%clk 0:00:59]} 28. Bf1 {[%clk 0:00:00]}  Rg3 {[%clk 0:00:56]} 0-1


[Site "https://www.chess.com"]

[Event "Titled Tuesday Blitz November 14 Early 2023"]
[White "Xu, Xiangyu"]
[Black "Alexandre, Anne Shopie Elizabeth"]
[WhiteFideId "8608288"]
[BlackFideId "11902418"]
[WhiteElo "2981"]
[BlackElo "2843"]
[Result "1/2-1/2"]
[Round "7"]
[TimeControl "180+1"]
[Date "2023.11.14"]
[WhiteClock "0:00:24"]
[BlackClock "0:00:24"]
[Board "15"]

1. d4 {[%clk 0:03:00]}  Nf6 {[%clk 0:02:58]} 2. c4 {[%clk 0:03:01]}  e6 {[%clk 0:02:58]} 3. g3 {[%clk 0:03:01]}  d5 {[%clk 0:02:57]} 4. Bg2 {[%clk 0:03:02]}  Bb4+ {[%clk 0:02:56]} 5. Bd2 {[%clk 0:03:00]}  Be7 {[%clk 0:02:56]} 6. Nf3 {[%clk 0:03:01]}  O-O {[%clk 0:02:56]} 7. Bf4 {[%clk 0:03:02]}  a5 {[%clk 0:02:54]} 8. O-O {[%clk 0:02:55]}  c6 {[%clk 0:02:50]} 9. Nc3 {[%clk 0:02:46]}  Nbd7 {[%clk 0:02:47]} 10. cxd5 {[%clk 0:02:44]}  exd5 {[%clk 0:02:46]} 11. Qc2 {[%clk 0:02:43]}  Re8 {[%clk 0:02:46]} 12. Rfe1 {[%clk 0:02:43]}  Nf8 {[%clk 0:02:44]} 13. e3 {[%clk 0:02:36]}  Ng6 {[%clk 0:02:41]} 14. Bg5 {[%clk 0:02:35]}  h6 {[%clk 0:02:39]} 15. Bxf6 {[%clk 0:02:35]}  Bxf6 {[%clk 0:02:40]} 16. a3 {[%clk 0:02:35]}  Ne7 {[%clk 0:02:36]} 17. b4 {[%clk 0:02:33]}  axb4 {[%clk 0:02:35]} 18. axb4 {[%clk 0:02:34]}  Rxa1 {[%clk 0:02:35]} 19. Rxa1 {[%clk 0:02:35]}  Qd6 {[%clk 0:02:34]} 20. Qb3 {[%clk 0:02:27]}  b5 {[%clk 0:02:26]} 21. Ra8 {[%clk 0:02:12]}  Nf5 {[%clk 0:02:15]} 22. Qb1 {[%clk 0:02:06]}  Qc7 {[%clk 0:02:01]} 23. Ne1 {[%clk 0:01:50]}  Nd6 {[%clk 0:01:59]} 24. Nd3 {[%clk 0:01:49]}  Bf5 {[%clk 0:01:53]} 25. Rxe8+ {[%clk 0:01:48]}  Nxe8 {[%clk 0:01:54]} 26. Bf1 {[%clk 0:01:37]}  Nd6 {[%clk 0:01:53]} 27. Qa2 {[%clk 0:01:35]}  Bxd3 {[%clk 0:01:41]} 28. Bxd3 {[%clk 0:01:35]}  g6 {[%clk 0:01:40]} 29. Ne2 {[%clk 0:01:25]}  Nc4 {[%clk 0:01:34]} 30. Nf4 {[%clk 0:01:26]}  Bg5 {[%clk 0:01:26]} 31. Qa8+ {[%clk 0:01:01]}  Kg7 {[%clk 0:01:25]} 32. Be2 {[%clk 0:00:58]}  Bxf4 {[%clk 0:01:19]} 33. gxf4 {[%clk 0:00:59]}  Qd6 {[%clk 0:01:18]} 34. Kg2 {[%clk 0:00:51]}  Nd2 {[%clk 0:00:48]} 35. Qa3 {[%clk 0:00:48]}  Nc4 {[%clk 0:00:47]} 36. Qc3 {[%clk 0:00:47]}  Qf6 {[%clk 0:00:46]} 37. Qd3 {[%clk 0:00:45]}  g5 {[%clk 0:00:45]} 38. fxg5 {[%clk 0:00:43]}  Qxg5+ {[%clk 0:00:45]} 39. Kf1 {[%clk 0:00:43]}  Qh4 {[%clk 0:00:43]} 40. Kg2 {[%clk 0:00:43]}  Qg5+ {[%clk 0:00:43]} 41. Kh1 {[%clk 0:00:43]}  Nd6 {[%clk 0:00:40]} 42. Bf3 {[%clk 0:00:42]}  Qf6 {[%clk 0:00:39]} 43. Qd1 {[%clk 0:00:40]}  Nf5 {[%clk 0:00:34]} 44. Qg1+ {[%clk 0:00:29]}  Kf8 {[%clk 0:00:34]} 45. Be2 {[%clk 0:00:30]}  Nd6 {[%clk 0:00:32]} 46. Qg3 {[%clk 0:00:25]}  Ne4 {[%clk 0:00:31]} 47. Qb8+ {[%clk 0:00:25]}  Kg7 {[%clk 0:00:32]} 48. f3 {[%clk 0:00:25]}  Nc3 {[%clk 0:00:26]} 49. Qg3+ {[%clk 0:00:25]}  Qg6 {[%clk 0:00:24]} 50. Qe5+ {[%clk 0:00:25]}  Qf6 {[%clk 0:00:23]} 51. Qg3+ {[%clk 0:00:25]}  Qg6 {[%clk 0:00:24]} 52. Qe5+ {[%clk 0:00:25]}  Qf6 {[%clk 0:00:24]} 53. Qg3+ {[%clk 0:00:24]} 1/2-1/2


[Site "https://www.chess.com"]